bitfinex/quotes_SOLUSD_20250915
["timestamp","ask_amount","ask_price","bid_price","bid_amount"]
[1757943738132,0.5,236.22,236.21,0.16]
[1757943738318,8.55823117,236.22,236.21,0.16]
[1757943739011,7.85823117,236.22,236.21,0.16]
[1757943739212,12.09157297,236.22,236.21,0.16]
[1757943739433,12.79157297,236.22,236.21,0.16]
[1757943739626,12.09157297,236.22,236.21,0.16]
[1757943740134,5.4333418,236.22,236.21,0.16]
[1757943740312,26.38716698,236.22,236.21,0.16]
[1757943740636,32.39735484,236.22,236.21,0.16]
[1757943740826,68.53735484,236.22,236.21,0.16]
[1757943741027,62.52716698,236.22,236.21,0.16]
[1757943741331,71.68469024,236.22,236.21,0.16]
[1757943741632,26.96401304,236.21,236.2,0.1]
[1757943741931,35.04486945,236.21,236.2,0.1]
[1757943742139,27.66401304,236.21,236.2,0.1]
[1757943742308,36.82,236.22,236.2,0.1]
[1757943742510,36.82,236.22,236.2,4.33365052]
[1757943743228,0.5,236.22,236.21,8.05823117]
[1757943743438,0.5,236.22,236.21,0.7]
[1757943743731,0.5,236.22,236.21,4.93352101]
[1757943744046,0.5,236.22,236.2,0.1]
[1757943744211,0.5,236.22,236.2,4.33366278]
[1757943744410,0.5,236.22,236.21,0.7]
[1757943744836,0.5,236.22,236.21,8.05823117]
[1757943745652,0.5,236.22,236.21,0.7]
[1757943745945,0.5,236.22,236.21,8.05823117]
[1757943746146,0.5,236.22,236.21,0.7]
[1757943746348,0.5,236.22,236.2,0.1]
[1757943746651,8.55823117,236.22,236.2,0.1]
[1757943746828,12.79164859,236.22,236.2,0.1]
[1757943747019,8.05823117,236.21,236.2,0.1]
[1757943747354,8.05823117,236.21,236.19,0.06]
[1757943747355,13.59559401,236.19,236.18,0.06]
[1757943747520,9.15966421,236.19,236.16,0.06]
[1757943747826,7.35823117,236.18,236.16,0.06]
[1757943748444,13.59559401,236.2,236.16,0.06]
[1757943748445,7.35823117,236.19,236.16,0.06]
[1757943748618,11.59212619,236.19,236.16,0.06]
[1757943748819,33.35823117,236.21,236.16,0.06]
[1757943749151,0.5,236.22,236.18,7.35823117]
[1757943749319,0.5,236.22,236.19,8.05823117]
[1757943749521,0.5,236.22,236.19,0.7]
[1757943749849,0.5,236.22,236.18,4.23405876]
[1757943750146,7.35823117,236.21,236.16,4.29440115]
[1757943750328,4.73347976,236.22,236.16,4.99440115]
[1757943750329,7.85823117,236.22,236.16,4.99440115]
[1757943750850,7.85823117,236.22,236.16,11.65263944]
[1757943750851,0.5,236.22,236.16,11.65263944]
[1757943751051,0.5,236.22,236.17,8.05823117]
[1757943751651,0.5,236.22,236.18,0.7]
[1757943751834,0.5,236.22,236.19,4.93375228]
[1757943752361,0.5,236.22,236.21,7.35823117]
[1757943752529,0.03,236.33,236.22,26.0]
[1757943752746,7.35823117,236.28,236.22,26.0]
[1757943752925,0.03,236.33,236.27,7.35823117]
[1757943753128,0.03,236.33,236.23,0.7]
[1757943753129,0.03,236.33,236.28,7.35823117]
[1757943753447,0.03,236.33,236.28,0.7]
[1757943754051,0.03,236.33,236.27,7.35823117]
[1757943754231,0.03,236.33,236.23,0.7]
[1757943754425,7.35823117,236.32,236.24,7.35823117]
[1757943754762,13.62559401,236.33,236.25,0.7]
[1757943754935,7.35823117,236.32,236.25,0.7]
[1757943755728,4.23155044,236.32,236.25,4.93269575]
[1757943755941,0.03,236.33,236.27,7.35823117]
[1757943756127,0.03,236.33,236.3,7.35823117]
[1757943756334,0.03,236.33,236.3,0.7]
[1757943756937,0.03,236.33,236.31,0.7]
[1757943757335,0.5,236.31,236.25,26.0]
[1757943757537,0.5,236.31,236.29,7.35823117]
[1757943757725,0.5,236.31,236.29,4.68696651]
[1757943757939,0.5,236.31,236.3,4.93190859]
[1757943758134,0.5,236.31,236.3,0.7]
[1757943759829,0.5,236.31,236.26,4.93262507]
[1757943760035,0.5,236.31,236.27,0.7]
[1757943760229,9.41871953,236.31,236.24,4.93282154]
[1757943760430,4.68696651,236.3,236.21,0.7]
[1757943760749,13.59559401,236.27,236.18,11.28478291]
[1757943760948,4.68696651,236.27,236.19,5.38696651]
[1757943761126,4.68696651,236.27,236.2,0.7]
[1757943761755,4.68696651,236.27,236.2,5.38696651]
[1757943761957,4.68696651,236.28,236.21,8.92048752]
[1757943762157,4.68696651,236.3,236.22,5.38696651]
[1757943762351,5.18696651,236.31,236.24,4.68696651]
[1757943762752,5.18696651,236.31,236.24,5.38696651]
[1757943762950,9.41872547,236.31,236.24,0.7]
[1757943763142,4.68696651,236.3,236.21,4.23352101]
[1757943763346,4.68696651,236.26,236.21,4.23352101]
[1757943764750,4.68696651,236.24,236.19,4.23376454]
[1757943765758,4.68696651,236.26,236.2,0.7]
[1757943765934,4.68696651,236.27,236.21,4.23352101]
[1757943766248,4.68696651,236.25,236.18,4.68696651]
[1757943766431,4.68696651,236.25,236.17,0.7]
[1757943766432,4.68696651,236.25,236.17,4.93419295]
[1757943766639,4.68696651,236.18,236.16,0.06]
[1757943766843,4.68696651,236.19,236.16,0.76]
[1757943767051,4.68696651,236.21,236.16,0.06]
[1757943768170,13.59559401,236.19,236.16,0.06]
[1757943768338,13.59559401,236.17,236.16,0.06]
[1757943768658,58.80136011,236.17,236.16,0.06]
[1757943768870,62.30101739,236.17,236.16,0.06]
[1757943770063,66.53525543,236.17,236.16,0.06]
[1757943771651,71.22222194,236.17,236.16,0.06]
[1757943771963,65.22698642,236.17,236.16,0.06]
[1757943772350,60.54001991,236.17,236.16,0.06]
[1757943772768,66.52903694,236.17,236.16,0.06]
[1757943773339,71.21600345,236.17,236.16,0.06]
[1757943774358,68.37936617,236.17,236.16,0.06]
[1757943774543,26.99239966,236.17,236.16,0.06]
[1757943774743,19.60578187,236.17,236.16,0.06]
[1757943775055,13.59559401,236.18,236.16,0.77]
[1757943775241,49.63559401,236.18,236.16,0.06]
[1757943775953,0.03,236.19,236.16,0.77]
[1757943776647,0.03,236.19,236.17,5.39696651]
[1757943777146,0.03,236.19,236.18,0.71]
[1757943777352,0.03,236.19,236.18,5.39696651]
[1757943777567,0.03,236.22,236.21,4.68696651]
[1757943778070,0.03,236.22,236.21,5.39696651]
[1757943778363,0.03,236.22,236.19,4.68696651]
[1757943778752,0.03,236.22,236.2,0.71]
[1757943779055,0.03,236.22,236.21,4.68696651]
[1757943779276,0.03,236.22,236.21,5.39696651]
[1757943780153,0.03,236.22,236.21,0.71]
[1757943780350,0.03,236.22,236.21,9.63048752]
[1757943780657,10.60774388,236.35,236.21,9.63048752]
[1757943780658,0.03,236.35,236.24,26.0]
[1757943780841,0.03,236.35,236.32,4.68696651]
[1757943781041,0.13,236.39,236.35,26.0]
[1757943781252,0.13,236.39,236.37,4.68696651]
[1757943781772,0.13,236.39,236.37,0.71]
[1757943781952,0.13,236.39,236.37,5.39696651]
[1757943782147,0.13,236.39,236.33,0.71]
[1757943782342,9.04733136,236.39,236.3,0.71]
[1757943782544,6.04018786,236.38,236.35,4.68696651]
[1757943782747,0.03,236.38,236.37,4.68696651]
[1757943782986,0.03,236.38,236.32,0.71]
[1757943783366,4.68696651,236.36,236.28,9.62918255]
[1757943783653,0.03,236.38,236.31,4.68696651]
[1757943783856,4.71696651,236.38,236.31,4.68696651]
[1757943784071,4.71696651,236.38,236.31,5.39696651]
[1757943784295,4.71696651,236.38,236.26,4.94248706]
[1757943784296,4.68696651,236.34,236.26,4.94248706]
[1757943784474,4.68696651,236.34,236.27,0.71]
[1757943784669,4.68696651,236.34,236.26,4.68696651]
[1757943784976,4.95083432,236.36,236.25,4.68696651]
[1757943784977,4.68696651,236.32,236.25,4.68696651]
[1757943785143,4.68696651,236.34,236.27,4.68696651]
[1757943785348,13.59559401,236.35,236.28,5.39696651]
[1757943786650,13.59559401,236.35,236.29,4.23208768]
[1757943786845,17.82662523,236.35,236.23,26.0]
[1757943787165,4.68696651,236.34,236.26,5.39696651]
[1757943787652,26.0,236.3,236.19,4.68696651]
[1757943787853,13.59559401,236.29,236.21,0.71]
[1757943788469,4.68696651,236.28,236.21,0.71]
[1757943788669,4.23120219,236.34,236.26,4.68696651]
[1757943788876,13.59559401,236.33,236.27,4.68696651]
[1757943789168,13.59559401,236.33,236.25,0.71]
[1757943789372,18.28256052,236.33,236.25,0.71]
[1757943789563,4.68696651,236.34,236.26,4.68696651]
[1757943789871,4.68696651,236.35,236.28,4.68696651]
[1757943790254,4.68696651,236.34,236.27,5.39696651]
[1757943790663,13.59559401,236.36,236.26,26.0]
[1757943790877,4.68696651,236.31,236.28,0.06]
[1757943791187,13.59559401,236.34,236.28,0.06]
[1757943791188,4.68696651,236.29,236.28,0.06]
[1757943791559,18.28256052,236.29,236.28,0.06]
[1757943791765,19.00256052,236.29,236.28,0.06]
[1757943792474,24.41185949,236.29,236.28,0.06]
[1757943792673,28.64394717,236.29,236.28,0.06]
[1757943793675,28.64394717,236.29,236.25,0.06]
[1757943793676,39.59559401,236.26,236.25,0.06]
[1757943793993,83.42807744,236.26,236.25,0.06]
[1757943794188,84.12807744,236.26,236.25,0.06]
[1757943794575,84.62807744,236.26,236.25,0.06]
[1757943794885,13.59559401,236.25,236.23,0.06]
[1757943795098,13.59559401,236.19,236.16,0.06]
[1757943795396,44.28256052,236.17,236.16,0.06]
[1757943795896,26.0,236.19,236.16,0.77]
[1757943796089,66.68696651,236.21,236.16,0.77]
[1757943796472,30.68696651,236.21,236.16,0.77]
[1757943796988,30.68696651,236.21,236.17,0.71]
[1757943797195,4.68696651,236.21,236.17,0.71]
[1757943797689,4.68696651,236.19,236.16,0.06]
[1757943797890,4.68696651,236.17,236.16,0.06]
[1757943798065,18.28256052,236.17,236.16,0.06]
[1757943798995,23.21679856,236.17,236.16,0.06]
[1757943799496,54.28256052,236.17,236.16,0.06]
[1757943799687,54.98256052,236.17,236.16,0.06]
[1757943800598,54.98256052,236.17,236.13,0.06]
[1757943800599,26.0,236.14,236.13,0.06]
[1757943801092,34.92174249,236.14,236.13,0.06]
[1757943801900,62.0,236.14,236.13,0.06]
[1757943802070,8.9215753,236.15,236.13,0.06]
[1757943802271,40.68696651,236.15,236.13,0.06]
[1757943802471,4.68696651,236.14,236.13,0.06]
[1757943802772,36.0,236.15,236.13,0.06]
[1757943802773,4.68696651,236.15,236.13,0.06]
[1757943802973,4.68696651,236.16,236.13,0.06]
[1757943803370,4.68696651,236.15,236.13,0.06]
[1757943804689,36.0,236.16,236.14,0.71]
[1757943804903,30.68696651,236.17,236.14,0.71]
[1757943805081,4.68696651,236.18,236.14,0.71]
[1757943805277,4.68696651,236.16,236.13,0.06]
[1757943805601,4.68696651,236.15,236.13,0.06]
[1757943806303,4.68696651,236.14,236.13,0.06]
[1757943807080,49.2173365,236.14,236.13,0.06]
[1757943807278,48.5173365,236.14,236.13,0.06]
[1757943807795,13.59559401,236.13,236.11,0.16]
[1757943808113,13.59559401,236.13,236.01,0.1]
[1757943808114,13.59559401,236.07,236.01,0.1]
[1757943808410,26.0,236.03,236.01,0.1]
[1757943808577,4.68696651,236.02,236.01,0.1]
[1757943809087,8.92389558,236.02,236.01,0.1]
[1757943809609,22.51948959,236.02,236.01,0.1]
[1757943809978,62.0,236.03,236.01,0.81]
[1757943810180,4.68696651,236.02,236.01,0.1]
[1757943810381,40.68696651,236.02,236.01,0.1]
[1757943810708,26.0,236.03,236.01,0.81]
[1757943810709,4.68696651,236.03,236.01,0.81]
[1757943810907,40.23661399,236.04,236.01,0.81]
[1757943811091,4.68696651,236.03,236.01,0.81]
[1757943812090,36.0,236.04,236.01,0.81]
[1757943812295,4.68696651,236.04,236.02,0.65]
[1757943812486,4.68696651,236.04,236.03,0.65]
[1757943812681,4.68696651,236.04,236.01,0.1]
[1757943812899,4.68696651,236.03,236.01,0.75]
[1757943813206,36.0,236.05,236.02,0.65]
[1757943813412,4.68696651,236.05,236.03,0.65]
[1757943813614,4.68696651,236.04,236.01,0.1]
[1757943813980,36.0,236.06,236.02,0.65]
[1757943814187,4.68696651,236.03,236.01,0.1]
[1757943814403,4.68696651,236.02,236.01,0.1]
[1757943814785,4.68696651,236.02,236.01,0.75]
[1757943815785,4.68696651,236.02,236.01,0.1]
[1757943816113,18.28256052,236.02,236.01,0.1]
[1757943816808,13.59559401,236.02,236.01,0.1]
[1757943816978,18.28256052,236.02,236.01,0.1]
[1757943817182,22.51948959,236.02,236.01,0.1]
[1757943818485,28.60878856,236.02,236.01,0.1]
[1757943819529,13.59559401,235.97,235.91,0.75]
[1757943819824,7.3880346,235.93,235.91,0.75]
[1757943819986,7.3880346,235.92,235.91,0.1]
[1757943820388,20.98362861,235.92,235.91,0.1]
[1757943821318,25.2223536,235.92,235.91,0.1]
[1757943821607,18.514319,235.92,235.91,0.1]
[1757943821807,56.98362861,235.92,235.91,0.1]
[1757943822723,57.66362861,235.92,235.91,0.1]
[1757943822928,17.834319,235.92,235.91,0.1]
[1757943823228,25.2223536,235.92,235.91,0.1]
[1757943823434,61.2223536,235.92,235.91,0.1]
[1757943824351,53.834319,235.92,235.91,0.1]
[1757943824520,61.2223536,235.92,235.91,0.1]
[1757943824715,61.9023536,235.92,235.91,0.1]
[1757943825407,67.31165257,235.92,235.91,0.1]
[1757943825728,67.31165257,235.92,235.81,0.1]
[1757943825729,13.59559401,235.85,235.81,0.1]
[1757943826033,7.3880346,235.82,235.81,0.1]
[1757943826234,7.3880346,235.93,235.82,0.65]
[1757943826529,0.69,236.05,235.89,26.0]
[1757943826730,36.69,236.04,235.94,7.3880346]
[1757943826905,36.69,236.04,235.94,0.06]
[1757943827107,36.0,236.03,235.94,26.06]
[1757943827306,36.0,236.04,235.95,0.06]
[1757943827628,36.0,236.04,235.96,14.83302254]
[1757943827809,36.0,236.04,235.97,0.06]
[1757943828009,7.3880346,236.02,235.96,14.83302254]
[1757943828208,7.3880346,236.0,235.82,19.99999999]
[1757943828428,7.3880346,236.0,235.93,7.3880346]
[1757943828625,7.3880346,236.0,235.92,7.3880346]
[1757943828949,36.0,236.01,235.92,7.3880346]
[1757943829109,7.3880346,236.0,235.92,7.4480346]
[1757943829424,7.3880346,236.0,235.93,4.23854533]
[1757943829625,7.3880346,235.99,235.91,0.06]
[1757943829823,7.3880346,235.97,235.91,4.29889933]
[1757943830217,0.69,236.0,235.91,0.06]
[1757943830218,7.3880346,235.96,235.91,0.06]
[1757943830629,7.3880346,235.96,235.91,4.29889872]
[1757943831019,36.0,235.97,235.91,4.29889872]
[1757943831020,43.3880346,235.97,235.91,4.29889872]
[1757943831536,47.62594322,235.97,235.91,0.06]
[1757943831714,36.0,235.97,235.91,4.29887243]
[1757943831919,0.69,236.0,235.91,4.29887243]
[1757943832105,7.3880346,235.99,235.92,7.3880346]
[1757943832422,35.98,235.98,235.91,11.68690703]
[1757943832625,7.3880346,235.97,235.91,0.06]
[1757943832827,7.3880346,235.97,235.91,4.29888215]
[1757943833036,7.3880346,235.97,235.91,0.06]
[1757943833223,7.3880346,235.95,235.91,0.06]
[1757943833424,36.67,235.98,235.91,0.06]
[1757943833628,0.69,235.94,235.91,0.06]
[1757943833934,7.3880346,235.92,235.91,0.06]
[1757943834357,13.59559401,235.91,235.88,0.06]
[1757943834527,7.3880346,235.89,235.88,0.06]
[1757943835050,0.7,235.91,235.88,0.06]
[1757943835347,0.7,235.89,235.88,0.06]
[1757943835520,8.0880346,235.89,235.88,0.06]
[1757943835726,26.0,235.86,235.81,0.1]
[1757943835939,69.3680346,235.86,235.81,0.1]
[1757943836228,7.3880346,235.83,235.81,0.1]
[1757943836632,7.3880346,235.84,235.81,0.1]
[1757943836851,7.3880346,235.83,235.81,0.1]
[1757943837055,8.0880346,235.85,235.81,0.1]
[1757943837235,7.3880346,235.83,235.81,0.1]
[1757943837431,7.3880346,235.82,235.81,0.1]
[1757943837638,36.0,235.83,235.81,0.1]
[1757943837955,7.3880346,235.84,235.81,0.1]
[1757943838255,30.23991134,235.86,235.81,0.1]
[1757943838256,8.0880346,235.82,235.81,0.1]
[1757943838553,0.7,235.82,235.81,0.1]
[1757943838923,44.0880346,235.82,235.81,0.1]
[1757943839147,36.7,235.82,235.81,0.1]
[1757943839376,44.0880346,235.82,235.81,0.1]
[1757943839551,0.7,235.86,235.81,0.1]
[1757943839848,8.0880346,235.86,235.81,0.1]
[1757943840054,0.7,235.91,235.81,4.52066047]
[1757943840347,7.3880346,235.87,235.81,0.1]
[1757943840555,7.3880346,235.83,235.81,0.1]
[1757943840755,49.59559401,235.82,235.81,0.1]
[1757943840938,13.59559401,235.81,235.71,0.1]
[1757943841334,13.59559401,235.79,235.71,0.1]
[1757943841548,13.59559401,235.79,235.71,4.34246593]
[1757943841736,7.3880346,235.77,235.71,0.1]
[1757943842050,43.3880346,235.78,235.71,14.94871789]
[1757943842442,36.0,235.8,235.75,7.3880346]
[1757943842634,36.0,235.81,235.76,0.28]
[1757943842842,7.3880346,235.83,235.76,7.3880346]
[1757943843049,7.3880346,235.84,235.75,0.28]
[1757943843257,13.59559401,235.9,235.75,0.28]
[1757943843562,0.69,235.91,235.82,4.24052243]
[1757943843737,0.69,235.94,235.82,4.52052243]
[1757943843938,14.54,235.95,235.9,7.3880346]
[1757943844164,14.54,235.95,235.83,0.28]
[1757943844165,0.69,235.94,235.83,0.28]
[1757943844375,0.1,235.99,235.92,7.3880346]
[1757943844540,0.1,235.99,235.98,7.3880346]
[1757943844743,0.1,235.99,235.93,0.28]
[1757943844744,0.1,236.09,236.04,7.3880346]
[1757943845046,0.1,236.09,235.86,19.99999999]
[1757943845047,7.3880346,236.05,235.86,19.99999999]
[1757943845248,7.3880346,235.98,235.9,26.0]
[1757943845454,0.5,235.97,235.9,26.0]
[1757943845753,0.5,235.97,235.93,7.3880346]
[1757943845954,0.5,235.97,235.9,11.62703974]
[1757943846163,0.5,235.97,235.9,4.23900514]
[1757943846464,7.3880346,235.94,235.87,7.3880346]
[1757943846764,37.19,235.97,235.88,7.3880346]
[1757943846945,37.19,235.97,235.95,7.3880346]
[1757943846946,0.5,235.97,235.95,7.3880346]
[1757943847267,0.5,235.97,235.96,7.3880346]
[1757943847653,0.5,235.97,235.92,26.0]
[1757943847855,0.5,235.97,235.95,7.3880346]
[1757943848054,0.5,235.97,235.94,4.23822627]
[1757943848255,0.5,235.97,235.94,11.62626087]
[1757943848467,0.5,235.97,235.94,11.80626087]
[1757943848646,0.5,235.97,235.94,7.3880346]
[1757943848965,0.5,235.97,235.91,7.3880346]
[1757943849263,0.5,235.97,235.87,4.23962352]
[1757943849264,7.3880346,235.95,235.87,4.23962352]
[1757943849469,0.69,235.96,235.86,7.3880346]
[1757943849470,7.3880346,235.93,235.86,7.3880346]
[1757943849970,7.3880346,235.93,235.86,11.62781992]
[1757943850261,7.3880346,235.95,235.86,11.62781992]
[1757943850469,7.9180346,235.97,235.9,7.3880346]
[1757943850645,0.53,235.97,235.93,7.3880346]
[1757943851463,0.53,235.97,235.89,26.0]
[1757943851662,0.53,235.97,235.94,11.62624314]
[1757943851861,0.53,235.97,235.95,7.3880346]
[1757943852067,0.53,235.97,235.96,7.3880346]
[1757943852557,0.53,235.97,235.96,7.5680346]
[1757943852957,0.53,235.97,235.94,4.23820854]
[1757943853159,0.53,235.97,235.96,7.3880346]
[1757943853663,0.53,235.97,235.95,7.3880346]
[1757943853843,1.22,235.97,235.91,7.3880346]
[1757943854043,1.22,235.97,235.89,17.83470296]
[1757943854044,0.53,235.97,235.94,7.3880346]
[1757943854238,0.53,235.97,235.95,7.3880346]
[1757943854443,0.53,235.97,235.96,7.3880346]
[1757943854862,0.53,235.97,235.92,26.0]
[1757943855259,0.53,235.97,235.93,7.3880346]
[1757943855678,0.69,235.96,235.89,26.0]
[1757943855864,7.3880346,235.96,235.87,4.23945411]
[1757943856058,7.3880346,235.96,235.85,10.59952118]
[1757943856059,7.3880346,235.93,235.85,7.3880346]
[1757943856255,7.3880346,235.92,235.85,7.3880346]
[1757943856462,0.69,235.93,235.85,7.3880346]
[1757943856686,7.3880346,235.92,235.85,7.3880346]
[1757943856854,7.3880346,235.91,235.82,4.24049769]
[1757943857055,7.3880346,235.91,235.84,7.3880346]
[1757943857454,0.69,235.93,235.84,7.3880346]
[1757943857688,7.3880346,235.91,235.85,30.23988185]
[1757943858184,7.3880346,235.92,235.85,37.62791645]
[1757943858389,7.3880346,235.92,235.85,30.23988185]
[1757943858575,7.3880346,235.91,235.85,30.23988185]
[1757943858888,7.3880346,235.92,235.85,37.62791645]
[1757943859091,43.3680346,235.93,235.85,22.22787405]
[1757943859285,0.53,235.97,235.91,7.3880346]
[1757943860072,0.69,235.96,235.81,0.28]
[1757943860378,0.69,235.96,235.82,4.24052243]
[1757943860696,7.3880346,235.92,235.82,4.24052243]
[1757943860869,0.69,235.91,235.81,0.1]
[1757943861069,7.3880346,235.89,235.81,7.4880346]
[1757943861280,7.3880346,235.89,235.82,7.3880346]
[1757943861476,35.98,235.91,235.81,4.34061868]
[1757943861678,26.0,235.96,235.83,4.24034261]
[1757943861679,132.5,235.94,235.83,4.24034261]
[1757943861985,7.3880346,235.92,235.85,7.3880346]
[1757943862197,0.69,235.91,235.83,11.62837721]
[1757943862399,7.3880346,235.88,235.83,4.24034261]
[1757943862694,7.3880346,235.89,235.83,4.24034261]
[1757943862899,43.3680346,235.9,235.83,11.62837721]
[1757943863265,147.33431727,235.94,235.84,7.3880346]
[1757943863266,136.73840306,235.94,235.84,7.3880346]
[1757943863490,136.73840306,235.94,235.83,4.24034261]
[1757943863491,43.3680346,235.93,235.83,4.24034261]
[1757943863789,7.3880346,235.91,235.84,7.3880346]
[1757943864295,7.3880346,235.9,235.83,7.3880346]
[1757943864671,40.90873942,235.92,235.83,7.3880346]
[1757943864897,44.0580346,235.92,235.82,14.84182851]
[1757943865190,36.67,235.92,235.86,7.3880346]
[1757943865371,7.3880346,235.91,235.84,7.3880346]
[1757943865993,11.62701461,235.91,235.83,7.3880346]
[1757943866189,7.3880346,235.91,235.84,7.3880346]
[1757943866379,7.3880346,235.9,235.83,7.3880346]
[1757943866577,7.3880346,235.89,235.82,22.22986311]
[1757943866891,7.3880346,235.88,235.81,11.72871251]
[1757943867282,0.69,235.87,235.77,0.06]
[1757943867475,13.59559401,235.84,235.77,0.06]
[1757943867676,0.69,235.83,235.77,0.06]
[1757943867997,13.59559401,235.81,235.77,0.06]
[1757943868170,0.69,235.8,235.77,0.06]
[1757943868371,7.3880346,235.78,235.77,0.06]
[1757943868781,44.3180346,235.78,235.77,0.06]
[1757943869385,26.0,235.74,235.61,0.1]
[1757943869703,39.59559401,235.77,235.53,2.20733422]
[1757943869704,26.0,235.7,235.53,2.20733422]
[1757943869901,30.24358158,235.65,235.53,2.20733422]
[1757943870198,13.59559401,235.63,235.53,0.6]
[1757943870503,13.59559401,235.63,235.54,26.0]
[1757943870504,13.59559401,235.62,235.54,26.0]
[1757943870794,132.5,235.63,235.54,26.0]
[1757943871473,132.5,235.63,235.54,26.6]
[1757943871677,132.5,235.63,235.52,0.6]
[1757943871875,132.5,235.63,235.54,26.0]
[1757943872075,132.5,235.63,235.52,4.84576242]
[1757943872369,132.5,235.63,235.61,7.3880346]
[1757943872586,0.1,235.79,235.57,26.0]
[1757943872587,132.5,235.7,235.57,26.0]
[1757943872784,8.0680346,235.67,235.55,39.59559401]
[1757943872994,13.59559401,235.69,235.56,0.6]
[1757943873196,132.5,235.7,235.6,26.0]
[1757943873497,0.5,235.65,235.53,0.6]
[1757943873708,0.68,235.64,235.55,7.3880346]
[1757943873870,30.24412189,235.62,235.51,0.1]
[1757943874076,146.77559401,235.61,235.51,0.1]
[1757943874380,133.18,235.61,235.51,4.345939]
[1757943874694,132.5,235.61,235.51,0.1]
[1757943874999,13.59559401,235.59,235.51,0.1]
[1757943875181,132.5,235.61,235.53,7.3880346]
[1757943875382,39.58,235.6,235.53,7.3880346]
[1757943875578,39.58,235.6,235.51,4.34600035]
[1757943875781,0.68,235.59,235.51,30.34600035]
[1757943875980,0.68,235.63,235.51,40.96126084]
[1757943876178,0.68,235.63,235.53,7.3880346]
[1757943876476,13.59559401,235.6,235.51,0.1]
[1757943876698,7.3880346,235.56,235.51,0.1]
[1757943876874,39.58,235.59,235.51,0.1]
[1757943876875,7.3880346,235.57,235.51,0.1]
[1757943877076,8.0680346,235.56,235.51,4.34596534]
[1757943877306,39.58,235.59,235.51,0.1]
[1757943877478,7.3880346,235.57,235.51,0.1]
[1757943877677,0.68,235.6,235.51,11.73403588]
[1757943877877,0.68,235.6,235.51,4.34600128]
[1757943878270,40.38,235.63,235.54,7.3880346]
[1757943878476,7.3880346,235.61,235.54,7.3880346]
[1757943878676,40.38,235.63,235.54,7.3880346]
[1757943878881,7.3880346,235.55,235.49,26.0]
[1757943879087,0.68,235.54,235.42,11.63576206]
[1757943879377,7.3880346,235.5,235.43,7.3880346]
[1757943879709,7.3880346,235.5,235.42,4.92772746]
[1757943879907,4.72114945,235.51,235.44,4.24736663]
[1757943880089,0.68,235.54,235.45,4.72114945]
[1757943880407,0.68,235.54,235.44,14.86578321]
[1757943880577,0.68,235.54,235.47,30.72114945]
[1757943880774,0.68,235.59,235.47,26.0]
[1757943880991,0.68,235.59,235.52,4.72114945]
[1757943881280,0.68,235.59,235.53,4.72114945]
[1757943881488,4.72114945,235.58,235.49,26.68]
[1757943881773,13.59559401,235.55,235.42,8.96877943]
[1757943881980,4.72114945,235.5,235.42,14.86694864]
[1757943882207,0.68,235.51,235.42,14.86694864]
[1757943882500,13.59559401,235.55,235.43,0.68]
[1757943882684,13.59559401,235.51,235.41,0.1]
[1757943882891,26.0,235.52,235.42,4.24772746]
[1757943883200,26.68,235.52,235.42,4.24772746]
[1757943883395,0.68,235.52,235.42,14.86704612]
[1757943883575,4.72114945,235.49,235.42,4.24772746]
[1757943883777,0.68,235.51,235.42,4.24772746]
[1757943883974,54.77825505,235.56,235.42,4.24772746]
[1757943883975,0.68,235.56,235.45,4.72114945]
[1757943884179,0.68,235.56,235.47,4.72114945]